fUSD/lending_fUSD_20250708
["ID","MTS","AMOUNT","RATE_DAILY","PERIOD"]
[370390295,1751991847330,-1000.0,0.00035068,120]
[370390296,1751991847354,-1000.0,0.00035342,120]
[370390297,1751991847381,-1620.47071176,0.00035452,32]
[370390298,1751991847403,-313.59412202,0.00035589,120]
[370390299,1751991847426,-151.0,0.000356,120]
[370390300,1751991847448,-2000.0,0.00035616,120]
[370390301,1751991847472,-1000.0,0.00035616,120]
[370390302,1751991847495,-10000.0,0.0003588,120]
[370390303,1751991847523,-1620.47071176,0.000359,33]
[370390304,1751991847547,-400.0,0.00036,120]
[370390305,1751991847571,-100000.0,0.00036,120]
[370390306,1751991847594,-20000.0,0.000364,120]
[370390307,1751991847617,-4239.0515699,0.00036445,30]
[370390308,1751991847643,-50000.0,0.0003688,120]
[370390309,1751991847668,-1643.91808202,0.00036888,60]
[370390310,1751991847692,-185.17045736,0.000369,120]
[370390311,1751991847720,-8856.0,0.00037,120]
[370390312,1751991847744,-3055.87,0.00037,120]
[370390313,1751991847770,-1000.0,0.00037,60]
[370390314,1751991847794,-1288.23708943,0.00037,120]
[370390315,1751991847818,-5275.0,0.00037,117]
[370390316,1751991847843,-319.54,0.000371,120]
[370390317,1751991847868,-200.00000009,0.00037148,31]
[370390318,1751991847894,-200.24625,0.000372,120]
[370390319,1751991847917,-60000.0,0.000376,30]
[370390320,1751991847941,-150.0,0.00037789,106]
[370390321,1751991847966,-50000.0,0.000378,30]
[370390322,1751991847991,-50000.0,0.000378,31]
[370390323,1751991848016,-50000.0,0.000378,32]
[370390324,1751991848041,-50000.0,0.000378,33]
[370390325,1751991848066,-50000.0,0.000378,34]
[370390326,1751991848097,-50000.0,0.0003788,120]
[370390327,1751991848121,-400.0,0.00038,120]
[370390328,1751991848143,-1000.0,0.00038,90]
[370390329,1751991848166,-1130.41643933,0.000383,120]
[370390330,1751991848189,-373.43213211,0.00038355,120]
[370390331,1751991848211,-174.83696635,0.00038355,30]
[370390332,1751991848234,-999.0,0.00038356,120]
[370390333,1751991848258,-178.22175552,0.000384,33]
[370390334,1751991848281,-500000.0,0.0003842,120]
[370390335,1751991848305,-499.08,0.000385,120]
[370390336,1751991848328,-10000.0,0.000385,60]
[370390337,1751991848355,-50000.0,0.0003888,120]
[370390338,1751991848377,-276.70857891,0.000389,120]
[370390339,1751991848400,-153.12841158,0.00039,120]
[370390340,1751991848426,-8856.0,0.00039,120]
[370390341,1751991848450,-1000.0,0.00039,90]
[370390342,1751991848474,-944.9963122,0.00039,40]
[370390343,1751991848498,-999.0,0.00039178,120]
[370390344,1751991848523,-10000.0,0.000395,120]
[370390345,1751991848549,-50000.0,0.0003988,120]
[370390346,1751991848573,-2040.79956181,0.000399,120]
[370390347,1751991848598,-12920.63354057,0.0003999,30]
[370390348,1751991848625,-50000.0,0.0004,40]
[370390349,1751991848650,-1800.0,0.0004,41]
[370390350,1751991848673,-235.0,0.0004,120]
[370390351,1751991848698,-400.0,0.0004,120]
[370390352,1751991848729,-2136.4305357,0.0004,30]
[370390353,1751991848757,-177.79453048,0.0004,120]
[370390354,1751991848780,-280.76555532,0.0004,30]
[370390355,1751991848805,-234.67786669,0.0004,120]
[370390356,1751991848827,-419.94636823,0.0004,120]
[370390357,1751991848852,-339.89978189,0.0004,120]
[370390358,1751991848876,-6814.19432749,0.0004,30]
[370390359,1751991848901,-206.06174196,0.0004,30]
[370390360,1751991848925,-20734.35297278,0.0004,30]
[370390361,1751991848949,-387.0,0.0004,60]
[370390362,1751991848973,-1470.1717873,0.0004,120]
[370390363,1751991848998,-5845.0,0.0004,120]
[370390364,1751991849021,-200.0,0.0004,50]
[370390365,1751991849046,-20000.0,0.0004,120]
[370390366,1751991849069,-100000.0,0.0004,120]
[370390367,1751991849094,-200.0,0.0004,120]
[370390368,1751991849116,-300.0,0.0004,35]
[370390369,1751991849139,-457.58410799,0.0004,30]
[370390370,1751991849162,-330.0,0.0004,120]
[370390371,1751991849184,-1168.0,0.0004,60]
[370390372,1751991849206,-500.0,0.0004,120]
[370390373,1751991849230,-41174.64737976,0.0004,30]
[370390374,1751991849252,-170.38521914,0.0004,30]
[370390375,1751991849275,-152.61,0.0004,30]
[370390376,1751991849298,-515.0,0.0004,120]
[370390377,1751991849322,-999.0,0.0004,120]
[370390378,1751991849347,-230.0,0.0004,120]
[370390379,1751991849370,-232.59,0.0004,120]
[370390380,1751991849395,-718.29,0.0004,120]
[370390381,1751991849419,-1000.0,0.00040027,90]
[370390382,1751991849442,-418.00212801,0.00040306,30]
[370390383,1751991849465,-10000.0,0.000405,120]
[370390384,1751991849489,-1922.4,0.00040816,120]
[370390385,1751991849513,-999.0,0.00040821,120]
[370390386,1751991849536,-50000.0,0.0004088,120]
[370390387,1751991849560,-1800.0,0.00041,42]
[370390388,1751991849585,-236.56422115,0.00041,120]
[370390389,1751991849610,-8856.0,0.00041,120]
[370390390,1751991849634,-2007.714306,0.00041,120]
[370390391,1751991849658,-152.0,0.00041041,60]
[370390392,1751991849935,-5000.0,0.00041095,60]
[370390393,1751991849960,-20000.0,0.00041096,120]
[370390394,1751991849986,-1000.0,0.00041096,60]
[370390395,1751991850008,-1000.0,0.00041096,60]
[370390396,1751991850031,-1000.0,0.00041096,60]
[370390397,1751991850054,-1000.0,0.00041096,60]
[370390398,1751991850077,-1000.0,0.00041096,60]
[370390399,1751991850100,-1000.0,0.00041096,60]
[370390400,1751991850123,-1000.0,0.00041096,60]
[370390401,1751991850145,-1000.0,0.00041096,60]
[370390402,1751991850169,-1000.0,0.00041096,60]
[370390403,1751991850193,-1000.0,0.00041096,60]
[370390404,1751991850216,-1000.0,0.00041096,60]
[370390405,1751991850238,-261.0,0.00041096,60]
[370390406,1751991850260,-2000.0,0.00041096,120]
[370390407,1751991850282,-2000.0,0.00041096,120]
[370390408,1751991850309,-1029.0,0.00041096,120]
[370390409,1751991850332,-3000.0,0.00041096,120]
[370390410,1751991850358,-500.0,0.00041096,30]
[370390411,1751991850382,-500.0,0.00041096,30]
[370390412,1751991850406,-500.0,0.00041096,30]
[370390413,1751991850428,-500.0,0.00041096,30]
[370390414,1751991850450,-500.0,0.00041096,30]
[370390415,1751991850473,-500.0,0.00041096,30]
[370390416,1751991850501,-500.0,0.00041096,30]
[370390417,1751991850527,-500.0,0.00041096,30]
[370390418,1751991850557,-219.49413232,0.00041096,30]
[370390419,1751991850581,-500.0,0.00041096,30]
[370390420,1751991850605,-500.0,0.00041096,30]
[370390421,1751991850629,-500.0,0.00041096,30]
[370390422,1751991850655,-500.0,0.00041096,30]
[370390423,1751991850678,-500.0,0.00041096,30]
[370390424,1751991850706,-500.0,0.00041096,30]
[370390425,1751991850738,-500.0,0.00041096,30]
[370390426,1751991850767,-500.0,0.00041096,30]
[370390427,1751991850798,-500.0,0.00041096,30]
[370390428,1751991850824,-500.0,0.00041096,30]
[370390429,1751991850852,-266.51663178,0.00041096,31]
[370390430,1751991850880,-193.70327266,0.000411,120]
[370390431,1751991850908,-3000.0,0.00041389,60]
[370390432,1751991850940,-10000.0,0.000414,120]
[370390433,1751991850968,-20000.0,0.000414,120]
[370390434,1751991850998,-2112769.6812303,0.0004144,30]
[370390435,1751991861182,-150.0,0.00037837,107]
[370390436,1751991861215,-387269.8387697,0.0004144,30]
[370390437,1751991861239,-150.070806,0.00041448,120]
[370390438,1751991861262,-304848.0,0.000415,120]
[370390439,1751991861287,-150.070806,0.00041548,120]
[370390440,1751991861312,-511.09153722,0.00041643,30]
[370390441,1751991861336,-999.0,0.00041643,120]
[370390442,1751991861361,-150.070806,0.00041648,120]
[370390443,1751991861384,-600.0,0.00041663,60]
[370390444,1751991861407,-364.091802,0.000417,30]
[370390445,1751991861431,-150.070806,0.00041748,120]
[370390446,1751991861455,-53237.06197972,0.000418,120]
[370390447,1751991861483,-168.27,0.000418,31]
[370390448,1751991861509,-150.070806,0.00041848,120]
[370390449,1751991861533,-50000.0,0.0004188,120]
[370390450,1751991861555,-2000.0,0.000419,120]
[370390451,1751991861578,-3000.0,0.00041937,60]
[370390452,1751991861604,-157.070806,0.00041948,120]
[370390453,1751991861627,-1000.0,0.00041989,120]
[370390454,1751991861654,-50000.0,0.00042,42]
[370390455,1751991861678,-5000.0,0.00042,120]
[370390456,1751991861701,-751.38700566,0.00042,60]
[370390457,1751991861729,-1800.0,0.00042,43]
[370390458,1751991861755,-3055.87,0.00042,120]
[370390459,1751991861778,-27565.96123113,0.00042,120]
[370390460,1751991861805,-400.0,0.00042,120]
[370390461,1751991861829,-258.3883128,0.00042,120]
[370390462,1751991861855,-200.0,0.00042,50]
[370390463,1751991861878,-100000.0,0.00042,120]
[370390464,1751991861903,-5015.36126809,0.00042,45]
[370390465,1751991861925,-50000.0,0.00042,30]
[370390466,1751991861949,-2197.98,0.00042,120]
[370390467,1751991861971,-1618.66,0.00042,120]
[370390468,1751991861994,-5000.0,0.00042026,30]
[370390469,1751991862016,-2918.96,0.00042031,30]
[370390470,1751991862041,-5000.0,0.00042073,30]
[370390471,1751991862064,-5000.0,0.0004208,30]
[370390472,1751991862086,-1236.14023294,0.00042121,120]
[370390473,1751991862110,-5000.0,0.00042166,30]
[370390474,1751991862133,-978.05,0.00042191,30]
[370390475,1751991862156,-150.070806,0.00042198,120]
[370390476,1751991862179,-200.0,0.00042211,120]
[370390477,1751991862202,-600.0,0.00042211,60]
[370390478,1751991862226,-2203.56,0.00042229,30]
[370390479,1751991862248,-866.345,0.0004225,120]
[370390480,1751991862271,-866.345,0.0004225,120]
[370390481,1751991862293,-866.345,0.0004225,120]
[370390482,1751991862316,-866.346,0.0004225,120]
[370390483,1751991862340,-866.345,0.0004225,120]
[370390484,1751991862363,-2995.08,0.00042267,30]
[370390485,1751991862386,-5000.0,0.000423,120]
[370390486,1751991862408,-151.0,0.000423,120]
[370390487,1751991862431,-25000.0,0.00042364,30]
[370390488,1751991862453,-2364.9,0.00042367,30]
[370390489,1751991862475,-5000.0,0.00042371,30]
[370390490,1751991862497,-238.44,0.00042386,30]
[370390491,1751991862520,-150.070806,0.00042398,120]
[370390492,1751991862542,-4818.48607742,0.000424,120]
[370390493,1751991862565,-10000.0,0.000424,120]
[370390494,1751991862589,-9753.46578685,0.000424,120]
[370390495,1751991862614,-5000.0,0.00042401,30]
[370390496,1751991862639,-5000.0,0.00042403,30]
[370390497,1751991862662,-5000.0,0.00042465,65]
[370390498,1751991862687,-999.0,0.00042465,120]
[370390499,1751991862710,-3000.0,0.00042485,60]
[370390500,1751991862738,-2300.0,0.00042485,60]
[370390501,1751991862761,-157.070806,0.00042498,120]
[370390502,1751991862784,-1629.71908669,0.000425,60]
[370390503,1751991862810,-2500.0,0.000425,120]
[370390504,1751991862833,-1321.25,0.00042511,30]
[370390505,1751991862859,-5000.0,0.00042523,30]
[370390506,1751991862883,-152.0,0.00042527,60]
[370390507,1751991862907,-5000.0,0.00042544,30]
[370390508,1751991862929,-25000.0,0.00042551,30]
[370390509,1751991862952,-530.09987844,0.00042553,120]
[370390510,1751991862978,-2007.0,0.0004256,47]
[370390511,1751991863001,-3011.22,0.00042583,120]
[370390512,1751991863024,-1895.94,0.00042592,30]
[370390513,1751991863047,-23501.91,0.00042611,30]
[370390514,1751991863069,-5000.0,0.00042641,30]
[370390515,1751991863094,-4442.74,0.00042648,30]
[370390516,1751991863119,-5000.0,0.00042695,30]
[370390517,1751991863141,-1975.68,0.00042696,30]
[370390518,1751991863165,-5000.0,0.000427,120]
[370390519,1751991863187,-4434.54,0.000427,30]
[370390520,1751991863211,-3092.59,0.00042711,30]
[370390521,1751991863234,-5000.0,0.00042712,30]
[370390522,1751991863259,-528.0,0.0004275,31]
[370390523,1751991863282,-25000.0,0.00042753,30]
[370390524,1751991863305,-600.0,0.00042759,60]
[370390525,1751991863328,-5000.0,0.00042769,30]
[370390526,1751991863353,-5000.0,0.00042805,30]
[370390527,1751991863376,-5000.0,0.00042864,30]
[370390528,1751991863399,-50000.0,0.0004288,120]
[370390529,1751991863422,-25000.0,0.00042936,30]
[370390530,1751991863445,-3503.93,0.00042966,30]
[370390531,1751991863470,-200.0,0.00042978,120]
[370390532,1751991863720,-5000.0,0.00042983,30]
[370390533,1751991863747,-50165.51635571,0.00043,30]
[370390534,1751991863773,-1400.0,0.00043,120]
[370390535,1751991863797,-1700.03353638,0.00043,120]
[370390536,1751991863821,-5000.0,0.00043,120]
[370390537,1751991863843,-2112.30701154,0.00043,120]
[370390538,1751991863871,-400710.89040153,0.00043,30]
[370390539,1751991863895,-234.96106893,0.00043,120]
[370390540,1751991863919,-10000.0,0.00043,120]
[370390541,1751991863945,-5000.0,0.00043,30]
[370390542,1751991863968,-9000.0,0.00043,30]
[370390543,1751991863992,-2282.703025,0.00043,120]
[370390544,1751991864016,-587.10502372,0.00043,30]
[370390545,1751991864039,-152.9284516,0.00043,120]
[370390546,1751991864062,-2081.4277814,0.00043,120]
[370390547,1751991864086,-24000.0,0.00043,30]
[370390548,1751991864109,-20000.0,0.00043,30]
[370390549,1751991864131,-8856.0,0.00043,120]
[370390550,1751991864154,-939.57458682,0.00043,120]
[370390551,1751991864177,-300.0,0.00043,68]
[370390552,1751991864200,-2740.0,0.00043,120]
[370390553,1751991864227,-141494.26,0.00043,120]
[370390554,1751991864251,-50000.0,0.00043,31]
[370390555,1751991864275,-649.89841705,0.00043,120]
[370390556,1751991864300,-900.0,0.00043,44]
[370390557,1751991864326,-855.0,0.00043,120]
[370390558,1751991864349,-10000.0,0.00043,120]
[370390559,1751991864375,-10000.0,0.00043,120]
[370390560,1751991864398,-10000.0,0.00043,120]
[370390561,1751991864422,-526.75,0.00043,120]
[370390562,1751991864447,-3000.0,0.00043033,60]
[370390563,1751991864470,-160.64004063,0.00043187,90]
[370390564,1751991864495,-157.070806,0.00043198,120]
[370390565,1751991864520,-5000.0,0.000432,120]
[370390566,1751991864544,-999.0,0.00043287,120]
[370390567,1751991864570,-157.070806,0.00043398,120]
[370390568,1751991864594,-19603.5544157,0.000434,30]
[370390569,1751991864619,-10000.0,0.000434,120]
[370390570,1751991864643,-463.56,0.00043429,30]
[370390571,1751991864668,-463.56,0.00043429,30]
[370390572,1751991864695,-462.62,0.00043429,30]
[370390573,1751991864724,-233.16053841,0.0004344,120]
[370390574,1751991864750,-1123435.0,0.0004344,30]
[370390575,1751991864775,-157.070806,0.00043498,120]
[370390576,1751991864799,-1000.0,0.000435,120]
[370390577,1751991864824,-223.68792783,0.000435,120]
[370390578,1751991864847,-20000.0,0.000435,120]
[370390579,1751991864870,-200.0,0.00043552,120]
[370390580,1751991864896,-544.82599374,0.00043553,120]
[370390581,1751991864920,-3000.0,0.00043581,60]
[370390582,1751991864944,-2300.0,0.00043581,60]
[370390583,1751991864967,-1011.16929,0.00043679,30]
[370390584,1751991864991,-5000.0,0.000437,120]
[370390585,1751991865014,-226.7574737,0.000437,120]
[370390586,1751991865038,-4854.92676438,0.00043798,120]
[370390587,1751991865074,-3319.10786027,0.00043798,120]
[370390588,1751991865099,-150.30224424,0.00043798,120]
[370390589,1751991865130,-666.31492664,0.000438,119]
[370390590,1751991865155,-2047.92011145,0.000438,120]
[370390591,1751991865180,-278.59,0.000438,120]
[370390592,1751991865205,-563.86332736,0.00043835,70]
[370390593,1751991865229,-500.0,0.00043836,30]
[370390594,1751991865253,-600.0,0.00043855,60]
[370390595,1751991865277,-50000.0,0.0004388,120]
[370390596,1751991865303,-210.2,0.000439,35]
[370390597,1751991865326,-1043.45957341,0.0004399,120]
[370390598,1751991865353,-50000.0,0.00044,44]
[370390599,1751991865378,-1000.0,0.00044,120]
[370390600,1751991865402,-10000.0,0.00044,120]
[370390601,1751991865425,-2054.18651167,0.00044,120]
[370390602,1751991865449,-500000.0,0.00044,120]
[370390603,1751991865473,-431.99870023,0.00044,120]
[370390604,1751991876143,-680.00000001,0.0004,120]
[370390605,1751991876172,-2000.0,0.00043836,120]
[370390606,1751991876194,-102314.17045148,0.00044,120]
[370390607,1751991876216,-1619.63792203,0.00044,120]
[370390608,1751991876239,-1000000.0,0.00044,100]
[370390609,1751991876263,-1000000.0,0.00044,100]
[370390610,1751991876285,-1000000.0,0.00044,110]
[370390611,1751991876308,-5000.0,0.00044,120]
[370390612,1751991876330,-565.27957153,0.00044,120]
[370390613,1751991876352,-173.53408705,0.00044,120]
[370390614,1751991876375,-1192.44243178,0.00044,120]
[370390615,1751991876399,-272.85603903,0.00044,120]
[370390616,1751991876422,-13343.6452001,0.00044,120]
[370390617,1751991876449,-872838.43429699,0.00044,120]
[370390618,1751991881358,-127161.56570301,0.00044,120]
[370390619,1751991881383,-400.0,0.00044,120]
[370390620,1751991881405,-1680.9855438,0.00044,90]
[370390621,1751991881429,-200.0,0.00044,50]
[370390622,1751991881453,-188419.59,0.00044,120]
[370390623,1751991881478,-50000.0,0.00044,32]
[370390624,1751991881501,-532.505544,0.00044,57]
[370390625,1751991881524,-152.0,0.00044013,60]
[370390626,1751991881547,-3055.87,0.000441,120]
[370390627,1751991881570,-999.0,0.00044109,120]
[370390628,1751991881593,-3000.0,0.00044129,60]
[370390629,1751991881615,-11607.2,0.00044167,117]
[370390630,1751991881639,-157.070806,0.00044198,120]
[370390631,1751991881661,-5000.0,0.000442,120]
[370390632,1751991881685,-10000.0,0.00044233,120]
[370390633,1751991881707,-217.74,0.00044233,120]
[370390634,1751991881733,-10000.0,0.00044233,120]
[370390635,1751991881756,-769.60207639,0.0004439,120]
[370390636,1751991881779,-157.070806,0.00044398,120]
[370390637,1751991881802,-500000.0,0.000444,120]
[370390638,1751991881827,-2000.0,0.000444,47]
[370390639,1751991881850,-11918.08474486,0.0004444,120]
[370390640,1751991881874,-262.070813,0.00044498,120]
[370390641,1751991881898,-3130.83826691,0.000445,120]
[370390642,1751991881921,-1395.28,0.000445,120]
[370390643,1751991881944,-10000.0,0.000445,120]
[370390644,1751991881968,-3373.72912632,0.000445,120]
[370390645,1751991881990,-355.88,0.00044525,30]
[370390646,1751991882013,-2312.82,0.00044539,30]
[370390647,1751991882036,-1335.43563582,0.0004455,120]
[370390648,1751991882058,-5000.0,0.000446,120]
[370390649,1751991882081,-3000.0,0.00044677,60]
[370390650,1751991882104,-2300.0,0.00044677,60]
[370390651,1751991882126,-23524.19915821,0.00044765,30]
[370390652,1751991882148,-306.29965834,0.00044765,30]
[370390653,1751991882171,-157.070806,0.00044798,120]
[370390654,1751991882193,-2100.0,0.000448,120]
[370390655,1751991882216,-5000.0,0.000448,120]
[370390656,1751991882239,-1158.0,0.000448,120]
[370390657,1751991882262,-102972.42648568,0.000448,120]
[370390658,1751991882285,-167065.0390261,0.000448,30]
[370390659,1751991882307,-189.36170791,0.000448,120]
[370390660,1751991882330,-150.0,0.00044877,30]
[370390661,1751991882353,-50000.0,0.0004488,120]
[370390662,1751991882377,-200.0,0.00044894,120]
[370390663,1751991882400,-5443.0,0.000449,120]
[370390664,1751991882422,-1674.77194276,0.000449,30]
[370390665,1751991882445,-1000.0,0.000449,120]
[370390666,1751991882467,-191.57862708,0.000449,120]
[370390667,1751991882490,-30550.48202806,0.000449,120]
[370390668,1751991882513,-999.0,0.00044931,120]
[370390669,1751991882536,-600.0,0.00044951,60]
[370390670,1751991882559,-2000.0,0.0004496,47]
[370390671,1751991882582,-1000.0,0.0004499,120]
[370390672,1751991882605,-439.17248851,0.00044998,60]
[370390673,1751991882630,-229.68141254,0.00044998,60]
[370390674,1751991882656,-1000.0,0.00044999,120]
[370390675,1751991882678,-1018.96,0.00044999,60]
[370390676,1751991882702,-151.0,0.00044999,32]
[370390677,1751991882727,-151.0,0.00044999,60]
[370390678,1751991882753,-300.0,0.00044999,32]
[370390679,1751991882777,-300.0,0.00044999,60]
[370390680,1751991882800,-300.0,0.00044999,32]
[370390681,1751991882825,-1078.84577635,0.00045,30]
[370390682,1751991882847,-1464.34746462,0.00045,120]
[370390683,1751991882871,-40134.9655367,0.00045,120]
[370390684,1751991882893,-279.11117581,0.00045,120]
[370390685,1751991882916,-19431.32794926,0.00045,120]
[370390686,1751991882938,-9748.41833128,0.00045,120]
[370390687,1751991882961,-174.14115598,0.00045,32]
[370390688,1751991882984,-188.03437393,0.00045,30]
[370390689,1751991883007,-510.01408904,0.00045,60]
[370390690,1751991883029,-205989.0324473,0.00045,120]
[370390691,1751991883051,-206.99588,0.00045,120]
[370390692,1751991883074,-112112.50541371,0.00045,60]
[370390693,1751991883097,-6448.0,0.00045,30]
[370390694,1751991883121,-1000.0,0.00045,120]
[370390695,1751991883145,-1000000.0,0.00045,120]
[370390696,1751991883167,-1000000.0,0.00045,120]
[370390697,1751991883191,-1018.62,0.00045,120]
[370390698,1751991883212,-102406.43221914,0.00045,120]
[370390699,1751991883234,-112197.68694369,0.00045,120]
[370390700,1751991883256,-1000.0,0.00045,120]
[370390701,1751991883277,-1253.27463058,0.00045,120]
[370390702,1751991883300,-23292.86420531,0.00045,30]
[370390703,1751991891724,-15293.32,0.000435,120]
[370390704,1751991891751,-397.85064634,0.000435,120]
[370390705,1751991891776,-582.7690701,0.00044877,30]
[370390706,1751991891798,-16707.13579469,0.00045,30]
[370390707,1751991891823,-9000.0,0.00045,30]
[370390708,1751991891849,-122693.44103738,0.00045,45]
[370390709,1751991891873,-3835325.48345149,0.00045,45]
[370390710,1751991897018,-1405.28336548,0.000435,120]
[370390711,1751991897041,-713.12152997,0.000435,120]
[370390712,1751991897064,-4741.48436988,0.00044932,45]
[370390713,1751991897087,-77721.78079389,0.00045,45]
[370390714,1751991897110,-392462.92989447,0.00045,60]
[370390715,1751991897136,-154852.33673101,0.00045,60]
[370390716,1751991897159,-1629.27478868,0.00045,30]
[370390717,1751991897182,-842731.78314349,0.00045,60]
[370390718,1751991897205,-400.0,0.00045,120]
[370390719,1751991897227,-48131.1516501,0.00045,120]
[370390720,1751991897252,-8856.0,0.00045,120]
[370390721,1751991897274,-885000.0,0.00045,60]
[370390722,1751991897298,-3362.52607111,0.00045,120]
[370390723,1751991897320,-47427.81025549,0.00045,30]
[370390724,1751991897343,-21636.35813677,0.00045,120]
[370390725,1751991897367,-301.82,0.00045,120]
[370390726,1751991897392,-35847.7635085,0.00045,120]
[370390727,1751991897415,-25000.0,0.00045,120]
[370390728,1751991897437,-20000.0,0.00045,120]
[370390729,1751991897460,-7612.91013215,0.00045,120]
[370390730,1751991897484,-20203.31925855,0.00045,120]
[370390731,1751991897506,-150.0,0.00045,60]
[370390732,1751991897529,-539725.35806905,0.00045,60]
[370390733,1751991897552,-2142.89,0.00045,120]
[370390734,1751991897575,-1653.09566,0.00045,120]
[370390735,1751991897598,-149562.7306891,0.00045,120]
[370390736,1751991897923,-1029.14675369,0.00045,120]
[370390737,1751991897947,-50000.0,0.00045,33]
[370390738,1751991897970,-11168.82083843,0.00045,120]
[370390739,1751991897994,-578.40608576,0.00045,120]
[370390740,1751991898016,-189.0,0.00045,31]
[370390741,1751991898039,-10510.0,0.00045,60]
[370390742,1751991898063,-444.0,0.00045,60]
[370390743,1751991898086,-30750.0,0.00045,120]
[370390744,1751991898109,-410.0,0.00045,120]
[370390745,1751991898133,-287.0,0.00045,120]
[370390746,1751991898156,-150.0,0.00045,120]
[370390747,1751991898179,-30750.0,0.00045,120]
[370390748,1751991898203,-316.83382499,0.00045044,120]
[370390749,1751991898227,-19074.57323157,0.0004505,120]
[370390750,1751991898250,-457.62755669,0.00045052,120]
[370390751,1751991898274,-325.18025175,0.00045052,120]
[370390752,1751991898297,-2019.76664444,0.00045054,120]
[370390753,1751991898321,-316.83382499,0.00045064,120]
[370390754,1751991898344,-894.7140001,0.00045065,120]
[370390755,1751991898366,-325.18025175,0.00045069,120]
[370390756,1751991898392,-2090.84445891,0.00045075,120]
[370390757,1751991898416,-5732.38238171,0.00045079,120]
[370390758,1751991898441,-457.62755669,0.00045082,120]
[370390759,1751991898465,-283.1,0.00045096,120]
[370390760,1751991898489,-5732.38238171,0.00045096,120]
[370390761,1751991898513,-52004.82260113,0.000451,30]
[370390762,1751991898538,-2090.84445891,0.00045105,120]
[370390763,1751991898560,-2090.84445891,0.00045108,120]
[370390764,1751991898583,-9110.72403873,0.00045114,120]
[370390765,1751991898605,-457.62755669,0.00045116,120]
[370390766,1751991898628,-5732.38238171,0.00045128,120]
[370390767,1751991898652,-2090.84445891,0.00045137,120]
[370390768,1751991898675,-316.83382499,0.0004514,120]
[370390769,1751991898698,-5732.38238171,0.00045148,120]
[370390770,1751991898721,-2090.84445891,0.00045165,120]
[370390771,1751991898749,-325.18025175,0.00045178,120]
[370390772,1751991898771,-316.83382499,0.0004518,120]
[370390773,1751991898794,-457.62755669,0.00045183,120]
[370390774,1751991898821,-2982.38000057,0.00045186,120]
[370390775,1751991898844,-2090.84445891,0.00045187,120]
[370390776,1751991898867,-2090.84445891,0.00045194,120]
[370390777,1751991898891,-19074.57323157,0.00045201,120]
[370390778,1751991898914,-2019.76664444,0.00045208,120]
[370390779,1751991898937,-5732.38238171,0.00045209,120]
[370390780,1751991898960,-325.18025175,0.00045212,120]
[370390781,1751991898982,-2090.84445891,0.0004522,120]
[370390782,1751991899005,-3000.0,0.00045225,60]
[370390783,1751991899027,-325.18025175,0.00045237,120]
[370390784,1751991899050,-457.62755669,0.00045248,120]
[370390785,1751991899075,-151.0,0.00045249,30]
[370390786,1751991899099,-160.0,0.00045249,30]
[370390787,1751991899122,-300.0,0.00045249,30]
[370390788,1751991899146,-300.0,0.00045249,30]
[370390789,1751991899169,-457.62755669,0.00045252,120]
[370390790,1751991899192,-5732.38238171,0.00045256,120]
[370390791,1751991899216,-2019.76664444,0.00045256,120]
[370390792,1751991899238,-457.62755669,0.00045259,120]
[370390793,1751991899260,-2019.76664444,0.00045262,120]
[370390794,1751991899283,-5732.38238171,0.00045266,120]